fUST/lending_fUST_20240927
["ID","MTS","AMOUNT","RATE_DAILY","PERIOD"]
[339221590,1727366491334,200.0,0.00020589,120]
[339221636,1727367032188,-290.28111,0.00014336,2]
[339221638,1727367032198,-1706.633776,0.0001437,2]
[339221640,1727367032207,-1952.93280141,0.00014449,2]
[339221645,1727367032243,-321.08277529,0.00014449,2]
[339221647,1727367032253,-161.853385,0.00014885,2]
[339221649,1727367032263,-161.853385,0.00014931,2]
[339221651,1727367032272,-2500.0,0.00014968,2]
[339221653,1727367032281,-161.853385,0.00014976,2]
[339221654,1727367032290,-858.07352148,0.00015005,2]
[339221730,1727367038700,-456.70977862,0.00015005,2]
[339221731,1727367038712,-714.25552079,0.00015005,2]
[339221751,1727367040096,-970.96117911,0.00015005,2]
[339221752,1727367040105,-161.853385,0.00015022,2]
[339221753,1727367040115,-300.0,0.00015054,2]
[339221754,1727367040126,-300.0,0.00015054,2]
[339221755,1727367040135,-1706.633776,0.00015055,2]
[339221757,1727367040145,-161.853385,0.00015067,2]
[339221758,1727367040154,-500.0,0.00015068,2]
[339221759,1727367040163,-166.666666,0.00015068,2]
[339221760,1727367040172,-161.853385,0.00015113,2]
[339221761,1727367040182,-161.853385,0.00015159,2]
[339221762,1727367040191,-161.853385,0.00015204,2]
[339221763,1727367040201,-161.853385,0.0001525,2]
[339221764,1727367040210,-161.853385,0.00015296,2]
[339221765,1727367040221,-161.853385,0.00015341,2]
[339221766,1727367040232,-161.853385,0.00015387,2]
[339221767,1727367040241,-166.666666,0.00015421,2]
[339221768,1727367040250,-161.853385,0.00015432,2]
[339221769,1727367040260,-161.853385,0.00015478,2]
[339221770,1727367040269,-161.853385,0.00015524,2]
[339221771,1727367040278,-161.853385,0.00015569,2]
[339221772,1727367040288,-161.853385,0.00015615,2]
[339221773,1727367040297,-161.853385,0.0001566,2]
[339221774,1727367040307,-1706.633776,0.0001574,2]
[339221775,1727367040317,-151.21252962,0.00015754,2]
[339221776,1727367040330,-166.666666,0.00015774,2]
[339221777,1727367040340,-363.65475609,0.00015854,2]
[339221778,1727367040356,-136.34524391,0.00015854,2]
[339221779,1727367040366,-500.0,0.00015854,2]
[339221780,1727367040375,-500.0,0.00015854,2]
[339221781,1727367040385,-268.00905377,0.00015854,2]
[339221782,1727367040395,-500.0,0.00015854,2]
[339221783,1727367040405,-500.0,0.00015854,2]
[339221784,1727367040415,-500.0,0.00015854,2]
[339221785,1727367040425,-500.0,0.00015854,2]
[339221786,1727367040434,-500.0,0.00015854,2]
[339221787,1727367040445,-500.0,0.00015854,2]
[339221788,1727367040456,-500.0,0.00015854,2]
[339221789,1727367040465,-500.0,0.00015854,2]
[339221790,1727367040475,-500.0,0.00015854,2]
[339221791,1727367040486,-500.0,0.00015854,2]
[339221792,1727367040496,-500.0,0.00015854,2]
[339221793,1727367040506,-500.0,0.00015854,2]
[339221794,1727367040516,-500.0,0.00015854,2]
[339221795,1727367040527,-500.0,0.00015854,2]
[339221796,1727367040538,-500.0,0.00015854,2]
[339221797,1727367040549,-500.0,0.00015854,2]
[339221798,1727367040559,-500.0,0.00015854,2]
[339221799,1727367040569,-500.0,0.00015854,2]
[339221800,1727367040579,-477.24349652,0.00015854,2]
[339221801,1727367040590,-499.99999999,0.00015854,2]
[339221802,1727367040601,-24900.0,0.00015855,2]
[339221803,1727367040612,-500.81581184,0.0001596,2]
[339221804,1727367040622,-189.9459373,0.0001596,2]
[339221805,1727367040633,-500.0,0.0001596,2]
[339221806,1727367040643,-500.0,0.0001596,2]
[339221807,1727367040653,-500.0,0.0001596,2]
[339221808,1727367040663,-720.911897,0.00016,2]
[339221809,1727367040673,-151.0,0.00016074,2]
[339221810,1727367040682,-166.666666,0.00016126,2]
[339221811,1727367040694,-500.0,0.00016225,2]
[339221812,1727367040704,-420.0,0.00016475,2]
[339221813,1727367040715,-166.666666,0.00016479,2]
[339221814,1727367040725,-420.0,0.0001656,2]
[339221815,1727367040735,-599.38,0.000166,2]
[339221816,1727367040745,-166.666666,0.00016832,2]
[339221817,1727367040754,-151.21252962,0.00016973,2]
[339221818,1727367040764,-1000.0,0.00016974,2]
[339221819,1727367040773,-1000.0,0.00016974,2]
[339221820,1727367040784,-1000.0,0.00016974,2]
[339221821,1727367040796,-1000.0,0.00016974,2]
[339221822,1727367040806,-1000.0,0.00016974,2]
[339221823,1727367040817,-1000.0,0.00016974,2]
[339221824,1727367040827,-1000.0,0.00016974,2]
[339221825,1727367040838,-1000.0,0.00016974,2]
[339221826,1727367040847,-922.06203469,0.00016974,2]
[339221827,1727367040857,-500.0,0.00016976,2]
[339221828,1727367040866,-501.50871244,0.00016983,2]
[339221829,1727367040876,-501.62818812,0.00017171,2]
[339221830,1727367040887,-500.64112753,0.00017527,2]
[339221831,1727367040896,-500.0,0.00017527,2]
[339221832,1727367040907,-500.0,0.00017527,2]
[339221833,1727367040916,-500.7268362,0.00017592,2]
[339221834,1727367040926,-500.0,0.000176,2]
[339221835,1727367040935,-366.67751789,0.00017798,2]
[339221836,1727367040946,-500.0,0.000178,2]
[339221837,1727367040956,-500.0,0.00017808,2]
[339221838,1727367040967,-150.0,0.0001784,2]
[339221839,1727367040978,-171.40911753,0.0001787,2]
[339221840,1727367040988,-500.0,0.0001787,2]
[339221841,1727367040997,-500.0,0.0001787,2]
[339221842,1727367041006,-181.61697003,0.0001787,2]
[339221843,1727367041015,-500.0,0.0001787,2]
[339221844,1727367041025,-269.28896419,0.0001787,2]
[339221845,1727367041035,-587.0,0.0001803,2]
[339221846,1727367041046,-151.21252962,0.00018191,2]
[339221847,1727367041057,-14423.91833767,0.000182,2]
[339221848,1727367041068,-487.28976989,0.000182,2]
[339221849,1727367041081,-587.0,0.00018216,2]
[339221850,1727367041091,-21717.4399516,0.00018259,2]
[339221851,1727367041101,-3619.57332527,0.00018269,2]
[339221852,1727367041113,-525.0,0.00018279,2]
[339221853,1727367041124,-53079.011,0.00018279,2]
[339221854,1727367041135,-189.0,0.00018303,2]
[339221855,1727367041144,-160.0,0.00018479,2]
[339221856,1727367041156,-422.14838519,0.00018704,2]
[339221857,1727367041167,-500.0,0.00018773,2]
[339221858,1727367041177,-500.42804232,0.00018773,2]
[339221859,1727367041187,-500.0,0.00018773,2]
[339221860,1727367041197,-151.69214655,0.00018973,2]
[339221861,1727367041209,-500.13370929,0.00018973,2]
[339221862,1727367041219,-15941.51444274,0.0001898,2]
[339221863,1727367041229,-3619.57332527,0.0001899,3]
[339221864,1727367041247,-30604.0,0.00019,2]
[339221865,1727367041258,-218.075,0.00019,2]
[339221866,1727367041270,-152.68017911,0.00019,2]
[339221867,1727367041280,-151.0,0.00019,2]
[339221868,1727367041291,-151.0,0.00019,2]
[339221869,1727367041301,-151.0,0.00019,2]
[339221870,1727367041311,-383.865791,0.00019,2]
[339221871,1727367041320,-383.865791,0.00019,2]
[339221872,1727367041332,-151.0,0.00019,2]
[339221873,1727367041342,-319.516023,0.00019,2]
[339221874,1727367041352,-319.516023,0.00019,2]
[339221875,1727367041361,-151.0,0.00019,2]
[339221876,1727367041371,-151.0,0.00019,2]
[339221877,1727367041381,-151.0,0.00019,2]
[339221878,1727367041390,-151.0,0.00019,2]
[339221879,1727367041400,-151.0,0.00019,2]
[339221880,1727367041409,-158.566922,0.00019,2]
[339221881,1727367041419,-158.566922,0.00019,2]
[339221882,1727367041429,-469.005064,0.00019,2]
[339221883,1727367041438,-469.005064,0.00019,2]
[339221884,1727367041452,-237.875579,0.00019,2]
[339221885,1727367041461,-237.875579,0.00019,2]
[339221886,1727367041470,-151.0,0.00019051,2]
[339221887,1727367041479,-151.0,0.00019051,2]
[339221888,1727367041489,-151.208032,0.00019051,2]
[339221889,1727367041499,-426.739598,0.00019051,2]
[339221890,1727367041508,-151.0,0.00019051,2]
[339221891,1727367041518,-426.739598,0.00019051,2]
[339221892,1727367041528,-151.0,0.00019051,2]
[339221893,1727367041538,-153.513888,0.00019051,2]
[339221894,1727367041548,-10858.7199758,0.0001907,3]
[339221895,1727367041557,-500.68903163,0.00019073,2]
[339221896,1727367041566,-151.0,0.00019073,2]
[339221897,1727367041576,-151.0,0.00019073,2]
[339221898,1727367041587,-154.244663,0.00019073,2]
[339221899,1727367041597,-151.0,0.00019073,2]
[339221900,1727367041607,-151.0,0.00019073,2]
[339221901,1727367041616,-151.0,0.0001908,2]
[339221902,1727367041626,-151.0,0.0001908,2]
[339221903,1727367041635,-426.739598,0.0001908,2]
[339221904,1727367041645,-151.0,0.0001908,2]
[339221905,1727367041656,-426.739598,0.0001908,2]
[339221906,1727367041665,-151.0,0.0001908,2]
[339221907,1727367041674,-151.0,0.0001908,2]
[339221908,1727367041684,-151.0,0.0001908,2]
[339221909,1727367041693,-151.97534,0.0001908,2]
[339221910,1727367041703,-383.865791,0.0001908,2]
[339221911,1727367041713,-383.865791,0.0001908,2]
[339221912,1727367041722,-151.0,0.0001908,2]
[339221913,1727367041731,-151.0,0.0001908,2]
[339221914,1727367041741,-151.0,0.0001908,2]
[339221915,1727367041750,-319.516023,0.0001908,2]
[339221916,1727367041760,-319.516023,0.0001908,2]
[339221917,1727367041769,-151.0,0.0001908,2]
[339221918,1727367041779,-151.0,0.0001908,2]
[339221919,1727367041788,-151.0,0.0001908,2]
[339221920,1727367041798,-151.0,0.0001908,2]
[339221921,1727367041807,-151.0,0.0001908,2]
[339221922,1727367041818,-158.566922,0.0001908,2]
[339221923,1727367041830,-158.566922,0.0001908,2]
[339221924,1727367041839,-469.005064,0.0001908,2]
[339221925,1727367041849,-469.005064,0.0001908,2]
[339221926,1727367041862,-237.875579,0.0001908,2]
[339221927,1727367041871,-237.875579,0.0001908,2]
[339221928,1727367041882,-3619.57332527,0.0001908,3]
[339221929,1727367041893,-2000.0,0.0001909,2]
[339221930,1727367041903,-2000.0,0.0001909,2]
[339221931,1727367041913,-2000.0,0.0001909,2]
[339221932,1727367041922,-2000.0,0.0001909,2]
[339221933,1727367041932,-2000.0,0.0001909,2]
[339221934,1727367041942,-2000.0,0.0001909,2]
[339221935,1727367041951,-2000.0,0.0001909,2]
[339221936,1727367041961,-2000.0,0.0001909,2]
[339221937,1727367041970,-2000.0,0.0001909,2]
[339221938,1727367041980,-2000.0,0.0001909,2]
[339221939,1727367041990,-2000.0,0.0001909,2]
[339221940,1727367042000,-2000.0,0.0001909,2]
[339221941,1727367042010,-2000.0,0.0001909,2]
[339221942,1727367042021,-2000.0,0.0001909,2]
[339221943,1727367042032,-231.431716,0.0001909,2]
[339221944,1727367042042,-231.431716,0.0001909,2]
[339221945,1727367042054,-2000.0,0.00019122,2]
[339221946,1727367042063,-2014.67680889,0.00019122,2]
[339221947,1727367042073,-151.0,0.00019178,2]
[339221948,1727367042084,-151.0,0.00019236,2]
[339221949,1727367042094,-687.54316664,0.00019321,2]
[339221950,1727367042104,-151.0,0.00019326,2]
[339221951,1727367042113,-151.0,0.00019326,2]
[339221952,1727367042124,-291.429948,0.00019326,2]
[339221953,1727367042134,-291.429948,0.00019326,2]
[339221954,1727367042144,-151.0,0.00019452,2]
[339221955,1727367042154,-151.0,0.00019452,2]
[339221956,1727367042165,-151.0,0.00019452,2]
[339221957,1727367042175,-152.549108,0.00019452,2]
[339221958,1727367042185,-151.0,0.00019467,2]
[339221959,1727367042195,-151.0,0.00019467,2]
[339221960,1727367042204,-151.0,0.00019467,2]
[339221961,1727367042215,-231.431716,0.00019467,2]
[339221962,1727367042225,-231.431716,0.00019467,2]
[339221963,1727367042234,-150.112233,0.000195,2]
[339221964,1727367042244,-160.0,0.000195,3]
[339221965,1727367042255,-160.0,0.000195,5]
[339221966,1727367042265,-150.112233,0.000196,2]
[339221967,1727367042275,-500.0,0.00019639,2]
[339221968,1727367042285,-823.0,0.00019732,2]
[339221969,1727367042296,-2158.82774869,0.0001979,2]
[339221970,1727367042310,-150.112233,0.000198,2]
[339221971,1727367042321,-5982.20337743,0.00019827,3]
[339221972,1727367042341,-324.357,0.00019827,3]
[339222037,1727368171548,246.9418147,0.00013987,2]
[339222038,1727368189094,2500.0,0.00014033,2]
[339222047,1727368210505,24900.0,0.00013952,2]
[339222093,1727368232486,-391.891095,0.00014133,2]
[339222095,1727368232497,-157.300206,0.00014153,2]
[339222097,1727368232509,-238.6722682,0.00014207,2]
[339222099,1727368232519,-157.300206,0.00014522,2]
[339222101,1727368232529,-241.47567449,0.00014662,2]
[339222103,1727368232539,-7889.71712861,0.000147,2]
[339222219,1727368240289,-88.28287139,0.000147,2]
[339222220,1727368240299,-300.0,0.00014761,2]
[339222221,1727368240309,-3000.0,0.00014766,2]
[339222222,1727368240319,-391.891095,0.00014818,2]
[339222223,1727368240328,-157.300206,0.00014891,2]
[339222224,1727368240340,-500.0,0.00015068,2]
[339222225,1727368240349,-166.666666,0.00015068,2]
[339222226,1727368240359,-500.0,0.000153,2]
[339222227,1727368240368,-500.64112753,0.000153,2]
[339222228,1727368240378,-151.21252962,0.000154,2]
[339222229,1727368240388,-2796.9411405,0.000154,2]
[339222230,1727368240398,-166.666666,0.00015421,2]
[339222231,1727368240407,-268.00905377,0.00015499,2]
[339222232,1727368240419,-500.0,0.00015499,2]
[339222233,1727368240429,-500.0,0.00015499,2]
[339222234,1727368240439,-500.0,0.00015499,2]
[339222235,1727368240448,-500.0,0.00015499,2]
[339222236,1727368240457,-500.0,0.00015499,2]
[339222237,1727368240467,-500.0,0.00015499,2]
[339222238,1727368240476,-500.0,0.00015499,2]
[339222239,1727368240485,-500.0,0.00015499,2]
[339222240,1727368240495,-500.0,0.00015499,2]
[339222241,1727368240505,-500.0,0.00015499,2]
[339222242,1727368240515,-500.0,0.00015499,2]
[339222243,1727368240525,-500.0,0.00015499,2]
[339222244,1727368240534,-500.0,0.00015499,2]
[339222245,1727368240544,-500.0,0.00015499,2]
[339222246,1727368240554,-500.0,0.00015499,2]
[339222247,1727368240564,-500.0,0.00015499,2]
[339222248,1727368240573,-500.0,0.00015499,2]
[339222249,1727368240583,-500.0,0.00015499,2]
[339222250,1727368240595,-500.0,0.00015499,2]
[339222251,1727368240604,-500.0,0.00015499,2]
[339222252,1727368240614,-500.0,0.00015499,2]
[339222253,1727368240625,-500.0,0.00015499,2]
[339222254,1727368240635,-508.2711642,0.00015499,2]
[339222255,1727368240645,-500.0,0.000155,2]
[339222256,1727368240655,-500.7268362,0.000155,2]
[339222257,1727368240665,-189.9459373,0.000155,2]
[339222258,1727368240674,-500.0,0.000155,2]
[339222259,1727368240686,-500.81581184,0.000155,2]
[339222260,1727368240695,-500.0,0.000155,2]
[339222261,1727368240706,-500.0,0.000155,2]
[339222262,1727368240717,-500.0,0.000155,2]
[339222263,1727368240727,-500.42804232,0.000155,2]
[339222264,1727368240737,-500.0,0.000155,2]
[339222265,1727368240748,-500.0,0.000155,2]
[339222266,1727368240757,-391.891095,0.00015503,2]
[339222267,1727368240767,-166.666666,0.00015774,2]
[339222268,1727368240927,-501.50871244,0.000159,2]
[339222269,1727368240938,-500.0,0.000159,2]
[339222270,1727368240947,-151.0,0.00015969,2]
[339222271,1727368240958,-720.911897,0.00016,2]
[339222272,1727368240968,-500.0,0.00016048,2]
[339222273,1727368240977,-166.666666,0.00016126,2]
[339222274,1727368240987,-420.0,0.00016237,2]
[339222275,1727368240996,-166.666666,0.00016479,2]
[339222276,1727368241006,-599.38,0.000167,2]
[339222277,1727368241016,-1198.89178192,0.000167,2]
[339222278,1727368241026,-166.666666,0.00016832,2]
[339222279,1727368241035,-6434.96255388,0.00017295,2]
[339222280,1727368241045,-2002.29522788,0.000176,2]
[339222281,1727368241054,-6434.96255388,0.00017627,2]
[339222282,1727368241063,-705.06182267,0.0001764,2]
[339222283,1727368241072,-500.0,0.00017768,2]
[339222284,1727368241082,-500.0,0.00017808,2]
[339222285,1727368241093,-587.0,0.00017861,2]
[339222286,1727368241105,-6434.96255388,0.00017873,2]
[339222287,1727368241114,-501.62818812,0.000179,2]
[339222288,1727368241124,-8371.78966987,0.00018,2]
[339222289,1727368241134,-151.21252962,0.0001819,2]
[339222290,1727368241143,-6434.96255388,0.00018199,2]
[339222291,1727368241153,-171.40911753,0.00018279,2]
[339222292,1727368241163,-500.0,0.00018279,2]
[339222293,1727368241172,-181.61697003,0.00018279,2]
[339222294,1727368241182,-500.0,0.00018279,2]
[339222295,1727368241192,-500.0,0.00018279,2]
[339222296,1727368241201,-500.0,0.00018279,2]
[339222297,1727368241210,-154.91035059,0.00018279,2]
[339222298,1727368241220,-355.46310948,0.0001828,2]
[339222299,1727368241230,-16098.0775296,0.0001828,2]
[339222300,1727368241240,-487.28976989,0.0001828,2]
[339222301,1727368241250,-14423.91833867,0.000183,2]
[339222302,1727368241259,-5366.0258432,0.00018437,2]
[339222303,1727368241269,-10698.86638908,0.00018447,2]
[339222304,1727368241278,-477.00309113,0.00018522,2]
[339222305,1727368241288,-15941.51444274,0.00018542,2]
[339222306,1727368241298,-500.68903163,0.00018573,2]
[339222307,1727368241307,-500.0,0.00018573,2]
[339222308,1727368241317,-355.46310948,0.00018582,2]
[339222309,1727368241326,-16098.0775296,0.00018582,2]
[339222310,1727368241336,-5366.0258432,0.00018592,2]
[339222311,1727368241346,-550.424874,0.00018602,2]
[339222312,1727368241356,-550.424874,0.00018602,2]
[339222313,1727368241365,-525.0,0.00018602,2]
[339222314,1727368241374,-6434.96255388,0.00018624,2]
[339222315,1727368241383,-355.46310948,0.00018632,2]
[339222316,1727368241393,-16098.0775296,0.00018632,2]
[339222317,1727368241403,-151.0,0.00018642,2]
[339222318,1727368241413,-151.0,0.00018642,2]
[339222319,1727368241422,-151.0,0.00018642,2]
[339222320,1727368241431,-151.0,0.00018642,2]
[339222321,1727368241441,-151.0,0.00018642,2]
[339222322,1727368241450,-231.431716,0.00018642,2]
[339222323,1727368241460,-151.0,0.00018642,2]
[339222324,1727368241469,-231.431716,0.00018642,2]
[339222325,1727368241479,-469.005064,0.00018642,2]
[339222326,1727368241488,-469.005064,0.00018642,2]
[339222327,1727368241497,-319.516023,0.00018642,2]
[339222328,1727368241507,-319.516023,0.00018642,2]
[339222329,1727368241516,-158.566922,0.00018642,2]
[339222330,1727368241526,-158.566922,0.00018642,2]
[339222331,1727368241535,-151.0,0.00018642,2]
[339222332,1727368241546,-550.424874,0.00018642,2]
[339222333,1727368241556,-550.424874,0.00018642,2]
[339222334,1727368241566,-2000.0,0.00018652,2]
[339222335,1727368241576,-2000.0,0.00018652,2]
[339222336,1727368241585,-2000.0,0.00018652,2]
[339222337,1727368241599,-2000.0,0.00018652,2]
[339222338,1727368241609,-2000.0,0.00018652,2]
[339222339,1727368241619,-2000.0,0.00018652,2]
[339222340,1727368241629,-2000.0,0.00018652,2]
[339222341,1727368241638,-2000.0,0.00018652,2]
[339222342,1727368241650,-2000.0,0.00018652,2]
[339222343,1727368241660,-2000.0,0.00018652,2]
[339222344,1727368241669,-2000.0,0.00018652,2]
[339222345,1727368241678,-2000.0,0.00018652,2]
[339222346,1727368241688,-2000.0,0.00018652,2]
[339222347,1727368241698,-2000.0,0.00018652,2]
[339222348,1727368241708,-151.0,0.00018652,2]
[339222349,1727368241719,-151.0,0.00018652,2]
[339222350,1727368241729,-231.431716,0.00018652,2]
[339222351,1727368241739,-151.0,0.00018652,2]
[339222352,1727368241750,-1000.0,0.00018652,2]
[339222353,1727368241759,-1000.0,0.00018652,2]
[339222354,1727368241769,-1000.0,0.00018652,2]
[339222355,1727368241779,-1000.0,0.00018652,2]
[339222356,1727368241789,-1000.0,0.00018652,2]
[339222357,1727368241802,-1000.0,0.00018652,2]
[339222358,1727368241811,-1000.0,0.00018652,2]
[339222359,1727368241821,-1000.0,0.00018652,2]
[339222360,1727368241830,-922.06203469,0.00018652,2]
[339222361,1727368241844,-231.431716,0.00018652,2]
[339222362,1727368241854,-469.005064,0.00018652,2]
[339222363,1727368241863,-469.005064,0.00018652,2]
[339222364,1727368241875,-158.566922,0.00018652,2]
[339222365,1727368241884,-158.566922,0.00018652,2]
[339222366,1727368241893,-151.0,0.00018652,2]
[339222367,1727368241903,-500.0,0.00018652,2]
[339222368,1727368241912,-500.0,0.00018673,2]
[339222369,1727368241922,-151.69214655,0.00018673,2]
[339222370,1727368241932,-500.13370929,0.00018673,2]
[339222371,1727368241942,-300.61483165,0.00018673,2]
[339222372,1727368241953,-500.78184371,0.00018673,2]
[339222373,1727368241964,-5366.0258432,0.00018674,2]
[339222374,1727368241974,-500.0,0.00018704,2]
[339222375,1727368241983,-422.14838519,0.00018704,2]
[339222376,1727368241993,-500.0,0.00018704,2]
[339222377,1727368242002,-6434.96255388,0.00018759,2]
[339222378,1727368242013,-6434.96255388,0.00018925,2]
[339222379,1727368242023,-151.0,0.0001898,2]
[339222380,1727368242033,-355.46310948,0.0001898,3]
[339222381,1727368242042,-16098.0775296,0.0001898,3]
[339222382,1727368242053,-151.0,0.0001899,2]
[339222383,1727368242063,-151.0,0.0001899,2]
[339222384,1727368242072,-237.875579,0.0001899,2]
[339222385,1727368242082,-237.875579,0.0001899,2]
[339222386,1727368242094,-151.0,0.0001899,2]
[339222387,1727368242103,-151.0,0.0001899,2]
[339222388,1727368242113,-291.429948,0.0001899,2]
[339222389,1727368242123,-291.429948,0.0001899,2]
[339222390,1727368242133,-383.865791,0.0001899,2]
[339222391,1727368242143,-383.865791,0.0001899,2]
[339222392,1727368242152,-151.0,0.0001899,2]
[339222393,1727368242162,-151.0,0.0001899,2]
[339222394,1727368242172,-426.739598,0.0001899,2]
[339222395,1727368242182,-152.334531,0.0001899,2]
[339222396,1727368242191,-151.0,0.0001899,2]
[339222397,1727368242201,-151.0,0.0001899,2]
[339222398,1727368242211,-152.155932,0.0001899,2]
[339222399,1727368242221,-426.739598,0.0001899,2]
[339222400,1727368242231,-151.0,0.0001899,2]
[339222401,1727368242240,-151.0,0.0001899,2]
[339222402,1727368242249,-151.0,0.0001899,2]
[339222403,1727368242259,-151.0,0.0001899,2]
[339222404,1727368242268,-154.244663,0.0001899,2]
[339222405,1727368242278,-151.0,0.0001899,2]
[339222406,1727368242288,-151.0,0.0001899,2]
[339222407,1727368242298,-151.0,0.0001899,2]
[339222408,1727368242308,-151.0,0.0001899,2]
[339222409,1727368242318,-231.431716,0.0001899,2]
[339222410,1727368242328,-151.0,0.0001899,2]
[339222411,1727368242337,-231.431716,0.0001899,2]
[339222412,1727368242347,-469.005064,0.0001899,2]
[339222413,1727368242356,-469.005064,0.0001899,2]
[339222414,1727368242372,-319.516023,0.0001899,2]
[339222415,1727368242382,-319.516023,0.0001899,2]
[339222416,1727368242391,-158.566922,0.0001899,2]
[339222417,1727368242400,-158.566922,0.0001899,2]
[339222418,1727368242410,-151.0,0.0001899,2]
[339222419,1727368242419,-550.424874,0.0001899,2]
[339222420,1727368242428,-550.424874,0.0001899,2]
[339222421,1727368242439,-2000.0,0.00018999,2]
[339222422,1727368242448,-2014.67680889,0.00018999,2]
[339222423,1727368242457,-1470.157703,0.00019,2]
[339222424,1727368242471,-2739.79655425,0.00019,2]
[339222425,1727368242480,-4534.14966189,0.00019,2]
[339222426,1727368242490,-9114.11692265,0.00019,2]
[339222480,1727368246339,-6537.5,0.00019,2]
[339222493,1727368991065,535.66,0.00010959,2]
[339222494,1727369049549,250.0,0.00013926,2]
[339222495,1727369049760,250.0,0.00013964,2]
[339222496,1727369050066,250.0,0.00014002,2]
[339222497,1727369050287,250.0,0.0001404,2]
[339222498,1727369050589,250.0,0.00014078,2]
[339222500,1727369214287,43241.0231564,0.00013409,2]
[339222501,1727369229121,848.433576,0.00013699,2]
[339222502,1727369266693,-250.0,0.00014117,2]
[339222503,1727369266718,-250.0,0.00014155,2]
[339222504,1727369266744,-250.0,0.00014193,2]
[339222505,1727369266766,-250.0,0.00014231,2]
[339222506,1727369266789,-250.0,0.00014269,2]
[339222507,1727369266811,-152.06122769,0.00014284,2]
[339222508,1727369266834,-2998.5443627,0.00014284,2]
[339222509,1727369266861,-250.0,0.00014308,2]
[339222510,1727369266884,-303.608898,0.00014324,2]
[339222511,1727369266907,-250.0,0.00014346,2]
[339222512,1727369266929,-300.0,0.00014375,2]
[339222513,1727369266952,-300.0,0.00014375,2]
[339222514,1727369266975,-3000.0,0.00014376,2]
[339222515,1727369267002,-24900.0,0.00014376,2]
[339222516,1727369267024,-848.433576,0.00014384,2]
[339222517,1727369267048,-250.0,0.00014384,2]
[339222518,1727369267070,-250.0,0.00014422,2]
[339222519,1727369267093,-250.0,0.0001446,2]
[339222520,1727369267120,-250.0,0.00014498,2]
[339222521,1727369267144,-250.0,0.00014537,2]
[339222522,1727369267167,-250.0,0.00014575,2]
[339222523,1727369267192,-250.0,0.00014613,2]
[339222524,1727369267214,-250.0,0.00014651,2]
[339222525,1727369267236,-404.35429768,0.00014919,2]
[339222526,1727369267259,-500.0,0.00014919,2]
[339222527,1727369267280,-500.0,0.00014919,2]
[339222528,1727369267302,-262.02266769,0.00014919,2]
[339222529,1727369267325,-500.0,0.00014919,2]
[339222530,1727369267349,-347.7248878,0.00014919,2]
[339222531,1727369267372,-500.0,0.00014919,2]
[339222532,1727369267395,-500.0,0.00014919,2]
[339222533,1727369267418,-500.0,0.00014919,2]
[339222534,1727369267442,-500.0,0.00014919,2]
[339222535,1727369267464,-241.43624496,0.00014919,2]
[339222536,1727369267490,-500.0,0.00014919,2]
[339222537,1727369267515,-500.0,0.00014919,2]
[339222538,1727369267538,-500.0,0.00014919,2]
[339222539,1727369267692,-500.0,0.00014919,2]
[339222540,1727369267717,-500.0,0.00014919,2]
[339222541,1727369267741,-500.0,0.00014919,2]
[339222542,1727369267765,-500.0,0.00014919,2]